bitfinex/quotes_ETHUSD_20240608
["timestamp","ask_amount","ask_price","bid_price","bid_amount"]
[1717867480732,0.58653673,3684.2,3684.0,3.89125466]
[1717867481003,1.62766477,3684.3,3684.0,3.89125466]
[1717867481157,0.58654151,3684.2,3684.0,3.89125466]
[1717867481359,1.62766477,3684.2,3684.0,3.89125466]
[1717867484308,1.62742908,3684.2,3684.0,3.89125466]
[1717867485301,0.5865486,3684.1,3684.0,3.89125466]
[1717867486177,1.62742908,3684.2,3684.0,3.89125466]
[1717867486716,0.58655345,3684.1,3684.0,3.89125466]
[1717867487076,0.58655345,3684.1,3684.0,1.39285466]
[1717867489183,0.58655345,3684.1,3684.0,1.71988836]
[1717867493086,1.62742908,3684.2,3684.0,1.71988836]
[1717867495201,1.62742908,3684.2,3684.1,0.724]
[1717867495519,1.62742908,3684.3,3684.1,4.9164517]
[1717867495723,1.62742908,3684.3,3684.2,2.11685466]
[1717867495924,1.62742908,3684.4,3684.2,2.44391057]
[1717867496122,2.21392394,3684.3,3684.2,1.71991057]
[1717867496343,2.21392394,3684.3,3684.2,2.44391057]
[1717867496930,0.58649486,3684.3,3684.2,2.44391057]
[1717867499265,1.62742908,3684.4,3684.2,2.44391057]
[1717867499627,1.62742908,3684.5,3684.2,2.44391057]
[1717867499821,1.62742908,3684.5,3684.4,0.724]
[1717867500040,2.21390614,3684.5,3684.4,4.58935466]
[1717867500338,2.21390614,3684.5,3684.4,4.91632831]
[1717867502720,0.58647706,3684.5,3684.4,4.91632831]
[1717867502874,1.62742908,3684.8,3684.4,2.44382831]
[1717867503026,2.21389781,3685.0,3684.7,0.724]
[1717867503222,2.71355,3685.2,3684.9,3.1999]
[1717867503223,0.58642515,3685.1,3684.9,3.1999]
[1717867503579,1.62742908,3685.3,3685.0,0.32647057]
[1717867503728,1.62742908,3685.3,3685.1,0.724]
[1717867503935,2.21381671,3685.4,3685.1,0.724]
[1717867504137,0.58638793,3685.3,3685.2,0.32638835]
[1717867504476,1.62752477,3685.4,3685.2,0.32638835]
[1717867504970,2.2139127,3685.4,3685.2,0.32638835]
[1717867505184,2.2139127,3685.5,3685.2,0.32638835]
[1717867505368,1.62752477,3685.5,3685.2,0.32638835]
[1717867506036,1.62753265,3685.5,3685.2,0.32638835]
[1717867506854,2.35073065,3685.5,3685.2,0.32638835]
[1717867507051,0.723198,3685.5,3685.2,0.32638835]
[1717867516171,0.58638662,3685.6,3685.4,0.724]
[1717867516391,1.62753049,3685.8,3685.4,0.724]
[1717867516616,1.62753049,3685.8,3685.6,0.724]
[1717867516912,1.62753049,3685.9,3685.7,0.32575086]
[1717867517123,0.73064902,3685.8,3685.7,0.32575086]
[1717867519511,1.62753049,3685.9,3685.7,0.32575086]
[1717867519887,1.62753049,3686.0,3685.7,0.32575086]
[1717867521076,1.62753049,3686.1,3685.7,0.32575086]
[1717867521279,1.62753049,3686.0,3685.7,0.32575086]
[1717867521823,1.62753049,3686.0,3685.6,0.724]
[1717867521992,1.62753049,3686.0,3685.8,0.32554366]
[1717867522189,0.16275305,3685.9,3685.8,0.32554366]
[1717867522392,1.62730852,3686.0,3685.9,0.32550257]
[1717867523015,1.62730852,3686.0,3685.6,0.724]
[1717867523221,1.62730852,3686.1,3685.9,0.32550257]
[1717867523424,1.84867232,3686.0,3685.6,0.724]
[1717867523578,1.62730852,3686.0,3685.6,0.724]
[1717867525985,1.62730852,3686.0,3685.1,7.38]
[1717867526184,1.62730852,3685.8,3685.2,1.39285466]
[1717867526505,2.3409,3685.9,3685.2,2.11685466]
[1717867526506,1.62730852,3685.7,3685.2,2.11685466]
[1717867527138,2.9272295,3685.9,3685.2,2.11685466]
[1717867527139,1.62730852,3685.6,3685.2,2.11685466]
[1717867527298,1.62730852,3685.6,3685.1,8.104]
[1717867527481,1.62730852,3685.5,3685.1,7.38]
[1717867527688,1.62730852,3685.5,3685.1,8.104]
[1717867528324,1.62730852,3685.4,3685.1,8.104]
[1717867529194,1.62730852,3685.4,3685.1,7.38]
[1717867529393,1.62730852,3685.4,3685.1,8.104]
[1717867531390,1.62730852,3685.3,3685.1,8.104]
[1717867531595,1.62730852,3685.3,3685.1,0.724]
[1717867532236,1.62730852,3685.2,3685.1,0.724]
[1717867532538,1.62730852,3685.3,3685.1,0.724]
[1717867532779,1.62730852,3685.2,3685.1,0.724]
[1717867533235,1.62730852,3685.4,3685.1,0.724]
[1717867533404,2.21356866,3685.4,3685.1,0.724]
[1717867533607,2.21356866,3685.3,3685.1,0.724]
[1717867533808,1.62715369,3685.3,3685.1,0.724]
[1717867534008,1.62715369,3685.3,3684.7,2.2982]
[1717867534332,2.21356866,3685.3,3685.1,0.724]
[1717867534518,1.62715369,3685.3,3685.2,0.3595905]
[1717867535154,2.21356866,3685.3,3685.2,0.3595905]
[1717867535309,1.62715369,3685.3,3685.2,0.3595905]
[1717867535501,2.21356866,3685.4,3685.2,0.3595905]
[1717867535706,1.62715369,3685.4,3685.2,0.3595905]
[1717867535940,2.21356866,3685.5,3685.2,0.3595905]
[1717867536120,2.21356866,3685.5,3685.3,0.724]
[1717867536311,1.62715369,3685.5,3685.4,0.35950647]
[1717867536526,2.21356866,3685.6,3685.3,0.724]
[1717867536734,2.21356866,3685.6,3685.4,0.35950647]
[1717867536940,2.21356866,3685.6,3685.3,0.724]
[1717867537268,2.21356866,3685.6,3685.4,0.35950647]
[1717867537570,2.21360156,3685.6,3685.3,0.724]
[1717867537752,2.21360156,3685.6,3685.5,0.35946445]
[1717867537943,2.21360156,3685.6,3685.3,0.724]
[1717867538270,2.21360156,3685.6,3685.4,0.35950647]
[1717867538565,2.21360156,3685.6,3685.3,0.724]
[1717867538756,2.21360156,3685.6,3685.5,0.35946445]
[1717867538960,2.21360156,3685.6,3685.3,0.724]
[1717867539132,2.21360156,3685.6,3685.5,0.35946445]
[1717867539335,2.21360156,3685.6,3685.3,0.724]
[1717867539664,2.21360156,3685.6,3685.4,0.35950647]
[1717867540073,2.21360156,3685.6,3685.3,0.724]
[1717867540232,2.21360156,3685.6,3685.5,0.35946445]
[1717867540433,2.21360156,3685.6,3685.4,0.35950647]
[1717867540660,2.21360156,3685.6,3685.5,0.35946445]
[1717867541069,2.21360156,3685.6,3685.3,0.724]
[1717867541376,2.21360156,3685.6,3685.4,0.35950647]
[1717867541761,2.21360156,3685.6,3685.3,0.724]
[1717867542069,2.21360156,3685.6,3685.4,0.35950647]
[1717867542462,2.21360156,3685.6,3685.3,0.724]
[1717867542626,2.21360156,3685.6,3685.5,0.35946445]
[1717867543270,2.21360156,3685.6,3685.3,0.724]
[1717867543475,2.21360156,3685.6,3685.5,0.35946445]
[1717867543677,2.21360156,3685.6,3685.4,0.35950647]
[1717867543834,2.21360156,3685.6,3685.5,0.35946445]
[1717867544259,2.21360156,3685.6,3685.3,0.724]
[1717867544458,2.21360156,3685.6,3685.5,0.35946445]
[1717867544660,2.21360156,3685.6,3685.4,0.35950647]
[1717867544882,2.21360156,3685.6,3685.5,0.35946445]
[1717867545181,2.21360156,3685.6,3685.3,0.724]
[1717867545336,2.21360156,3685.6,3685.5,0.35928886]
[1717867545534,2.21360156,3685.6,3685.3,0.724]
[1717867545770,2.21360156,3685.6,3685.4,0.35933087]
[1717867546137,2.21360156,3685.6,3685.3,0.724]
[1717867546360,2.21360156,3685.6,3685.4,0.35933087]
[1717867546673,2.21360156,3685.6,3685.3,0.724]
[1717867546889,2.21360156,3685.6,3685.5,0.35928886]
[1717867547041,2.21326204,3685.6,3685.4,0.35933087]
[1717867547241,2.21326204,3685.6,3685.5,0.35928886]
[1717867547689,2.21326204,3685.6,3685.3,0.724]
[1717867547869,2.21326204,3685.6,3685.5,0.35928886]
[1717867548041,0.58636022,3685.6,3685.4,0.35933087]
[1717867548241,2.7132,3685.7,3685.5,0.35928886]
[1717867548553,0.58638882,3685.6,3685.3,0.724]
[1717867548770,2.21329954,3685.5,3685.4,0.35933087]
[1717867548969,1.62691072,3685.5,3685.4,0.35933087]
[1717867549172,2.21329954,3685.5,3685.3,0.724]
[1717867549478,1.62691072,3685.5,3685.1,2.2878]
[1717867549640,2.21329954,3685.5,3685.4,0.35933087]
[1717867549837,1.62691072,3685.5,3685.2,0.724]
[1717867550082,2.21329954,3685.5,3685.4,0.35935935]
[1717867550279,1.62691072,3685.5,3685.3,0.35940136]
[1717867550438,1.62691072,3685.5,3685.4,0.35935935]
[1717867550645,2.21329954,3685.5,3685.4,0.35935935]
[1717867550878,1.62691072,3685.5,3685.4,0.35935935]
[1717867551076,0.58638882,3685.5,3685.2,0.724]
[1717867551382,2.21329954,3685.5,3685.3,0.35939187]
[1717867551594,1.62691072,3685.5,3685.3,0.35939187]
[1717867551810,2.21329954,3685.5,3685.2,0.724]
[1717867552008,1.62691072,3685.5,3685.4,0.35934986]
[1717867552290,2.21329954,3685.5,3685.4,0.35934986]
[1717867552497,1.62691072,3685.5,3685.2,0.724]
[1717867552656,2.21329954,3685.5,3685.4,0.35934986]
[1717867552856,1.62691072,3685.5,3685.3,0.35939187]
[1717867553056,0.58638882,3685.5,3685.4,0.35934986]
[1717867553606,0.58638882,3685.5,3685.2,0.724]
[1717867553758,0.58638882,3685.5,3685.4,0.35934986]
[1717867553957,0.58638882,3685.5,3685.2,0.724]
[1717867554292,2.21329954,3685.5,3685.3,0.35939187]
[1717867554476,1.62691072,3685.5,3685.3,0.35939187]
[1717867554680,1.62691072,3685.5,3685.1,2.2878]
[1717867554681,2.21329954,3685.5,3685.2,0.724]
[1717867554886,1.62691098,3685.5,3685.4,0.35934986]
[1717867555059,2.21327729,3685.5,3685.4,0.35934986]
[1717867555259,1.62691098,3685.5,3685.2,0.724]
[1717867555602,2.21327729,3685.5,3685.3,0.35939187]
[1717867555794,1.62691098,3685.5,3685.3,0.35939187]
[1717867555960,2.21325534,3685.5,3685.2,0.724]
[1717867556159,1.62688943,3685.5,3685.3,0.35939187]
[1717867556355,2.21325534,3685.5,3685.3,0.35939187]
[1717867556557,1.62688943,3685.5,3685.2,0.724]
[1717867556854,1.62688943,3685.5,3685.3,0.35939187]
[1717867556855,2.21325534,3685.5,3685.3,0.35939187]
[1717867557092,1.62688943,3685.5,3685.3,0.35939187]
[1717867557295,2.21325534,3685.5,3685.2,0.724]
[1717867557599,1.62688943,3685.5,3685.3,0.35939187]
[1717867557758,2.21325534,3685.5,3685.3,0.35939187]
[1717867557957,2.21325534,3685.5,3685.2,0.724]
[1717867558158,1.62688943,3685.5,3685.3,0.35939187]
[1717867558477,2.21325534,3685.5,3685.2,0.724]
[1717867558659,2.21325534,3685.5,3685.4,0.35934986]
[1717867558861,2.21325534,3685.5,3685.3,0.35939187]
[1717867559064,1.62688943,3685.5,3685.4,0.35934986]
[1717867559413,1.62688943,3685.5,3685.2,0.724]
[1717867559577,1.62688943,3685.4,3685.2,0.724]
[1717867559967,2.21325534,3685.4,3685.2,0.724]
[1717867560203,1.62688943,3685.4,3685.2,0.724]
[1717867560369,0.58639358,3685.3,3685.2,0.724]
[1717867560765,1.62688943,3685.5,3685.2,0.724]
[1717867561081,0.58636943,3685.4,3685.2,0.724]
[1717867562063,1.62688943,3685.5,3685.2,0.724]
[1717867562309,0.58636487,3685.4,3685.1,2.2878]
[1717867562604,0.58636487,3685.4,3685.3,0.724]
[1717867563318,0.58636487,3685.4,3685.3,2.11685466]
[1717867563470,0.58636487,3685.4,3685.3,4.46515466]
[1717867563806,1.62688943,3685.5,3685.3,4.46515466]
[1717867564301,1.62688943,3685.5,3685.4,0.35935459]
[1717867564491,2.21323279,3685.5,3685.4,0.35935459]
[1717867564689,2.21323279,3685.5,3685.3,4.46515466]
[1717867565006,1.62688943,3685.5,3685.4,0.35935459]
[1717867565217,2.21322929,3685.5,3685.4,0.35935459]
[1717867565366,2.21322929,3685.5,3685.3,4.46515466]
[1717867565566,1.62688943,3685.5,3685.4,0.35935459]
[1717867565768,2.21322923,3685.5,3685.3,4.46515466]
[1717867566005,1.62688943,3685.5,3685.4,0.35935459]
[1717867566306,2.21322931,3685.5,3685.4,0.35935459]
[1717867566508,2.21322931,3685.5,3685.3,4.46515466]
[1717867566665,1.62688943,3685.5,3685.4,0.35935459]
[1717867566859,2.21322938,3685.5,3685.4,0.35935459]
[1717867567105,0.58633995,3685.5,3685.1,0.724]
[1717867567308,5.10226,3685.8,3685.4,0.35935459]
[1717867567613,1.09661009,3685.7,3685.5,0.35931258]
[1717867567844,0.58638409,3685.6,3685.5,0.35931258]
[1717867568017,0.58638409,3685.6,3685.2,0.724]
[1717867568174,1.62800338,3685.4,3685.2,0.724]
[1717867568373,0.58637872,3685.3,3685.2,0.724]
[1717867568894,0.58637872,3685.3,3685.1,1.39285466]
[1717867569104,1.62800338,3685.3,3685.1,2.11685466]
[1717867569287,1.62800338,3685.3,3685.1,1.39285466]
[1717867569974,0.58640301,3685.2,3685.1,1.39285466]
[1717867571089,2.21440639,3685.2,3685.1,1.39285466]
[1717867572008,2.21440639,3685.2,3685.1,2.11685466]
[1717867572908,2.21440639,3685.2,3685.1,1.39285466]
[1717867573218,2.21440639,3685.2,3685.1,2.11685466]
[1717867574352,2.21440639,3685.2,3685.1,1.39285466]
[1717867574642,1.62800338,3685.3,3685.1,1.39285466]
[1717867574811,2.21440639,3685.2,3684.6,2.3483]
[1717867575014,1.62801659,3684.9,3684.5,8.104]
[1717867575234,2.2144196,3684.9,3684.5,8.104]
[1717867575718,0.58640301,3684.8,3684.5,8.104]
[1717867576040,0.58640301,3684.8,3684.5,7.38]
[1717867576249,2.2144196,3684.9,3684.5,7.38]
[1717867576403,1.62801659,3684.8,3684.5,8.104]
[1717867576604,2.2144196,3684.8,3684.5,7.38]
[1717867576805,2.2144196,3684.8,3684.5,8.104]
[1717867577039,1.62801659,3684.8,3684.6,0.724]
[1717867577345,2.2144196,3684.9,3684.6,0.724]
[1717867577516,2.2144196,3684.9,3684.5,7.38]
[1717867577716,2.2144196,3684.9,3684.6,0.724]
[1717867578111,1.62801659,3684.9,3684.6,0.724]
[1717867578507,5.10296,3684.8,3684.2,2.3483]
[1717867578733,1.62801659,3684.7,3684.3,1.39285466]
[1717867578935,2.71401,3684.6,3684.1,7.38]
[1717867579251,5.12306105,3684.6,3684.2,0.36024341]
[1717867580900,2.71414,3684.4,3684.2,0.36024341]
[1717867581252,2.3891,3684.3,3684.2,0.36024341]
[1717867581965,2.3891,3684.3,3683.7,0.724]
[1717867582145,2.3891,3684.3,3683.7,2.11685466]
[1717867582313,2.3891,3684.3,3683.8,0.36041158]
[1717867582718,2.3891,3684.3,3683.7,2.11685466]
[1717867582959,2.3891,3684.3,3683.8,0.36041158]
[1717867583154,2.3891,3684.3,3683.7,2.11685466]
[1717867583673,2.3891,3684.3,3683.8,0.36041158]
[1717867584024,3.1989902,3684.3,3683.7,2.11685466]
[1717867584226,2.3891,3684.3,3683.9,0.3608633]
[1717867584542,2.3891,3684.3,3683.8,0.36090535]
[1717867584715,2.3891,3684.3,3683.9,0.3608633]
[1717867585159,2.3891,3684.3,3683.7,2.11685466]
[1717867585386,2.3891,3684.3,3684.0,0.36082126]
[1717867585666,2.3891,3684.3,3684.1,0.36077921]
[1717867586050,2.3891,3684.3,3683.7,2.11685466]
[1717867586251,2.3891,3684.3,3684.2,0.36073717]
[1717867586422,2.3891,3684.3,3683.7,2.11685466]
[1717867586632,2.3891,3684.3,3684.2,0.36073717]
[1717867586837,2.3891,3684.3,3683.7,2.11685466]
[1717867587077,2.3891,3684.3,3684.2,0.36073717]
[1717867587237,2.3891,3684.3,3683.7,2.11685466]
[1717867587437,2.3891,3684.3,3684.2,0.36073717]
[1717867587639,2.3891,3684.3,3683.7,2.11685466]
[1717867587885,2.3891,3684.3,3684.2,0.36073717]
[1717867588078,2.3891,3684.3,3683.7,2.11685466]
[1717867588286,2.3891,3684.3,3684.2,0.36073717]
[1717867588484,2.971824,3684.3,3683.5,8.104]
[1717867588643,2.3891,3684.3,3684.2,0.36073717]
[1717867589360,2.3891,3684.3,3683.7,0.724]
[1717867589571,2.3891,3684.3,3684.2,0.36073717]
[1717867589786,2.3891,3684.3,3683.7,0.724]
[1717867590396,2.3891,3684.3,3683.8,0.36090535]
[1717867590753,2.71431,3684.2,3683.9,0.3608633]
[1717867591200,2.71431,3684.2,3683.5,7.38]
[1717867591356,2.71431,3684.2,3684.0,0.36082126]
[1717867591857,2.71444,3684.0,3683.5,7.38]
[1717867592165,3.45096267,3684.0,3683.5,7.38]
[1717867592366,2.71444,3684.0,3683.5,7.38]
[1717867593181,2.71444,3684.0,3683.3,0.724]
[1717867593382,2.71444,3684.0,3683.3,2.11685466]
[1717867593896,2.71444,3684.0,3683.3,1.39285466]
[1717867594106,2.71444,3684.0,3683.4,0.36107357]
[1717867594672,3.45096267,3684.0,3683.4,0.36107357]
[1717867594915,3.45096267,3684.0,3683.2,0.724]
[1717867595090,2.71444,3684.0,3683.5,0.36103151]
[1717867595259,2.71444,3684.0,3683.2,2.11685466]
[1717867595976,2.71444,3684.0,3683.3,0.36111563]
[1717867596376,2.71444,3684.0,3683.3,1.08511563]
[1717867597166,2.71444,3684.0,3683.5,0.724]
[1717867597363,2.71444,3684.0,3683.5,3.1055]
[1717867597599,2.71444,3684.0,3683.6,0.36098945]
[1717867600519,2.4404,3683.9,3682.0,1.13421868]
[1717867600722,0.724,3682.7,3682.1,0.42521359]
[1717867600950,2.4404,3683.3,3682.1,0.42521359]
[1717867601098,2.71523,3683.0,3682.6,0.724]
[1717867602397,2.71523,3683.0,3682.4,0.724]
[1717867603981,2.71523,3683.0,3682.9,0.724]
[1717867604181,2.71484,3683.5,3682.9,0.724]
[1717867604381,0.74243177,3683.4,3682.9,0.724]
[1717867606204,0.74243177,3683.4,3682.5,1.39285466]
[1717867606719,0.74243177,3683.4,3682.8,0.724]
[1717867608381,0.74243177,3683.4,3682.9,0.34968948]
[1717867610084,4.34159459,3683.3,3682.9,0.34968948]
[1717867610287,0.58080264,3683.2,3682.4,8.104]
[1717867610534,0.58080264,3683.2,3683.0,0.34964741]
[1717867610701,2.7151,3683.1,3682.4,9.49685466]
[1717867612602,2.7151,3683.1,3682.4,7.38]
[1717867612804,2.71531,3682.9,3682.4,7.38]
[1717867613831,2.71531,3682.9,3682.2,0.724]
[1717867614017,2.71531,3682.9,3682.3,1.39285466]
[1717867615306,2.71531,3682.9,3682.4,0.724]
[1717867616730,2.71531,3682.9,3682.3,1.39285466]
[1717867617510,0.49229832,3683.0,3682.0,19.84]
[1717867617511,2.71543,3682.7,3682.0,19.84]
[1717867617687,2.71543,3682.7,3682.2,0.724]
[1717867617888,2.71543,3682.7,3682.6,0.724]
[1717867618533,2.71543,3682.7,3682.6,1.07415777]
[1717867622036,2.7151,3683.1,3682.6,1.07415777]
[1717867622207,2.7151,3683.1,3682.8,0.724]
[1717867622409,2.7151,3683.1,3683.0,0.724]
[1717867622810,2.7151,3683.1,3683.0,1.07439332]
[1717867623394,3.09378372,3683.5,3683.0,1.07439332]
[1717867623597,0.71997643,3683.4,3683.0,1.07439332]
[1717867624542,1.62708056,3683.5,3683.0,1.07439332]
[1717867624758,1.62708056,3683.5,3683.4,0.724]
[1717867625044,2.71451,3684.0,3683.4,3.1825]
[1717867625233,2.71451,3684.0,3683.8,0.724]
[1717867625743,2.71451,3684.0,3683.9,0.34979623]
[1717867625944,3.14871454,3684.0,3683.6,0.724]
[1717867626149,3.14871454,3684.0,3683.9,0.34979623]
[1717867626451,3.14871454,3684.0,3683.4,0.724]
[1717867626815,3.14871454,3684.0,3683.9,0.34979623]
[1717867627016,3.14871454,3684.0,3683.4,0.724]
[1717867627413,3.14871454,3684.0,3683.6,0.724]
[1717867627816,3.14871454,3684.0,3683.7,0.34988033]
[1717867629362,2.71451,3684.0,3683.8,0.724]
[1717867630332,1.62762963,3684.2,3683.8,0.724]
[1717867631658,1.62762963,3684.3,3683.8,0.724]
[1717867631857,2.35302122,3684.3,3683.8,0.724]
[1717867632031,1.62762963,3684.2,3683.8,0.724]
[1717867633060,2.35302122,3684.3,3683.8,0.724]
[1717867633767,2.35302122,3684.3,3683.6,0.724]
[1717867634364,2.35302122,3684.3,3683.7,0.34988033]
[1717867634564,0.79793074,3684.2,3683.7,0.34988033]
[1717867637723,3.51229074,3684.2,3683.7,0.34988033]
[1717867638063,5.1396417,3684.2,3683.7,0.34988033]
[1717867639528,3.51229074,3684.2,3683.7,0.34988033]
[1717867640330,5.1396417,3684.2,3683.7,0.34988033]
[1717867640750,3.51229074,3684.2,3683.7,0.34988033]
[1717867641063,0.57262727,3684.1,3683.7,0.34988033]
[1717867641645,2.19997823,3684.1,3683.7,0.34988033]
[1717867641847,0.57262727,3684.1,3683.6,0.724]
[1717867642084,4.34187373,3684.2,3683.8,0.34957698]
[1717867642281,4.34187373,3684.2,3683.6,0.724]
[1717867642282,4.34187373,3684.2,3683.7,0.34961903]
[1717867642439,4.34187373,3684.2,3683.6,0.724]
[1717867642778,4.34187373,3684.2,3683.7,0.34961903]
[1717867642933,0.43418737,3684.1,3683.7,0.34961903]
[1717867644233,2.0617011,3684.1,3683.7,0.34961903]
[1717867644576,0.43418737,3684.1,3683.7,0.34961903]
[1717867645332,1.62751373,3684.3,3684.0,0.724]
[1717867645679,1.62751373,3684.8,3684.2,0.724]
[1717867645873,1.62751373,3684.8,3684.5,0.724]
[1717867646032,1.62751373,3684.9,3684.5,0.724]
[1717867646469,1.62751373,3684.9,3684.6,0.34913141]
[1717867646936,1.62751373,3684.9,3684.5,0.724]
[1717867647254,1.62751373,3684.9,3684.6,0.34913141]
[1717867647579,1.62751373,3684.9,3684.5,0.724]
[1717867647793,1.62751373,3684.9,3684.7,0.34908938]
[1717867647930,2.17821824,3684.9,3684.6,0.34913141]
[1717867648130,2.17821824,3684.9,3684.5,0.724]
[1717867648369,2.17821824,3684.9,3684.7,0.34908938]
[1717867648554,2.17821824,3684.9,3684.5,0.724]
[1717867648762,2.17821824,3684.9,3684.8,0.34904735]
[1717867649041,2.17821824,3684.9,3684.5,0.724]
[1717867649475,2.17821824,3684.9,3684.6,0.34913141]
[1717867649663,2.17821824,3684.9,3684.5,0.724]
[1717867649863,2.17821824,3684.9,3684.6,0.34913141]
[1717867650063,2.17821824,3684.9,3684.5,0.724]
[1717867650281,2.17821824,3684.9,3684.6,0.34913141]
[1717867650551,2.17821824,3684.9,3684.5,0.724]
[1717867650752,2.17821824,3684.9,3684.7,0.34908938]
[1717867650982,2.17821824,3684.9,3684.5,0.724]
[1717867651183,0.55070451,3684.9,3684.8,0.34904735]
[1717867651391,2.17821824,3684.9,3684.5,0.724]
[1717867651592,1.62751373,3684.9,3684.8,0.34904735]
[1717867652200,1.62751373,3684.9,3684.5,0.724]
[1717867652402,1.62751373,3684.9,3684.8,0.34904735]
[1717867652567,1.62751373,3684.9,3684.5,0.724]
[1717867652776,1.62751373,3684.9,3684.8,0.34904735]
[1717867652777,1.62808026,3684.9,3684.8,0.34904735]
[1717867653296,1.62808026,3684.9,3684.5,0.724]
[1717867653594,2.20723766,3685.0,3684.8,0.34904735]
[1717867653793,2.20723766,3685.0,3684.5,0.724]
[1717867653948,2.20723766,3685.0,3684.9,0.34900532]
[1717867654148,2.20723766,3685.0,3684.5,0.724]
[1717867654348,2.20723766,3685.0,3684.9,0.34900532]
[1717867654600,2.20723766,3685.0,3684.5,0.724]
[1717867654822,2.20723766,3685.0,3684.9,0.34900532]
[1717867654957,2.20723766,3685.0,3684.5,0.724]
[1717867655159,2.20723766,3685.0,3684.9,0.34900532]
[1717867655699,2.20723766,3685.0,3684.5,0.724]
[1717867656018,2.20723766,3685.0,3684.9,0.34900532]
[1717867656167,2.20723766,3685.0,3684.5,0.724]
[1717867656367,2.20723766,3685.0,3684.9,0.34900532]
[1717867656615,2.20723766,3685.0,3684.5,0.724]
[1717867656843,2.20723766,3685.0,3684.9,0.34900532]
[1717867657273,2.20723766,3685.0,3684.5,0.724]
[1717867657474,2.20723766,3685.0,3684.7,0.724]
[1717867657689,2.20723766,3685.0,3684.8,0.34904735]
[1717867658014,2.20723766,3685.0,3684.7,0.724]
[1717867658310,2.20723766,3685.0,3684.8,0.34904735]
[1717867658513,2.20723766,3685.0,3684.7,0.724]
[1717867658673,2.20723766,3685.0,3684.9,0.34900532]
[1717867658874,2.20723766,3685.0,3684.7,0.724]
[1717867659426,2.20723766,3685.0,3684.8,0.34904735]
[1717867659778,2.20723766,3685.0,3684.6,0.724]
[1717867660114,1.62808026,3685.0,3684.6,0.724]
[1717867660319,1.62808026,3685.0,3684.7,0.34908938]
[1717867661078,1.62812572,3685.0,3684.7,0.34908938]
[1717867664101,1.62812572,3684.9,3684.7,0.34908938]
[1717867666212,1.62812572,3684.8,3684.7,0.34908938]
[1717867666538,1.62812572,3684.9,3684.7,0.34908938]
[1717867668241,1.62812572,3684.8,3684.7,0.34908938]
[1717867670042,0.58651,3684.9,3684.7,0.34908938]
[1717867670202,0.58651,3684.8,3684.7,0.34908938]
[1717867670604,0.58654645,3685.0,3684.7,0.34908938]
[1717867670955,2.4295,3684.8,3684.7,0.34908938]
[1717867671253,2.71407,3684.5,3683.6,3.0322]
[1717867671454,1.62787596,3684.1,3683.6,3.0322]
[1717867671740,1.62787596,3684.1,3683.9,0.33728367]
[1717867671903,1.62787596,3684.1,3683.8,8.104]
[1717867672103,1.62787596,3684.1,3684.0,0.33724163]
[1717867672309,1.62787596,3684.2,3683.8,0.724]
[1717867672503,1.62787596,3684.2,3684.0,0.33724163]
[1717867672833,1.62787596,3684.2,3683.8,0.724]
[1717867673447,1.62787596,3684.2,3683.9,0.33728367]
[1717867673806,1.62787596,3684.2,3683.8,0.724]
[1717867674033,1.62787596,3684.2,3684.0,0.33724163]
[1717867674306,1.62787596,3684.1,3683.8,0.724]
[1717867674751,1.62787596,3684.2,3683.8,0.724]
[1717867675142,1.62787596,3684.1,3683.8,0.724]
[1717867676231,1.62787596,3684.2,3683.8,0.724]
[1717867676426,2.21442241,3684.2,3683.8,0.724]
[1717867676634,1.62787596,3684.2,3683.8,0.724]
[1717867677055,2.21442241,3684.2,3683.8,0.724]
[1717867677362,1.62787596,3684.2,3683.8,0.724]
[1717867677858,1.62787596,3684.3,3683.8,0.724]
[1717867678061,1.62787596,3684.2,3683.8,0.724]
[1717867682238,1.62787596,3684.3,3683.8,0.724]
[1717867682755,2.71407,3684.5,3683.8,0.724]
[1717867682957,1.62887227,3684.2,3683.8,0.724]
[1717867683744,1.62887227,3684.2,3683.6,2.3082]
[1717867683944,1.62887227,3684.2,3683.7,0.724]
[1717867684162,1.62887227,3684.1,3683.7,1.06136777]
[1717867685597,1.62887227,3684.2,3683.7,0.33736777]
[1717867685740,1.62887227,3684.3,3683.8,0.724]
[1717867685935,1.62887227,3684.3,3683.8,1.06158995]
[1717867686178,1.62887227,3684.2,3683.8,1.06158995]
[1717867687175,1.62887227,3684.1,3683.8,1.06158995]
[1717867687581,1.6288313,3684.1,3683.8,1.06158995]
[1717867688181,1.62884079,3684.0,3683.8,1.06158995]
[1717867688569,1.62884079,3684.1,3683.8,1.06158995]
[1717867688991,2.21547275,3684.0,3683.8,1.06158995]
[1717867689180,1.62884079,3684.0,3683.8,1.06158995]
[1717867689961,2.21547275,3684.0,3683.8,1.06158995]
[1717867690201,1.62884079,3684.1,3683.8,1.06158995]
[1717867690556,0.58663196,3684.0,3683.8,1.06158995]
[1717867691379,2.21547275,3684.0,3683.8,1.06158995]
[1717867691706,1.62884079,3684.1,3683.8,1.06158995]
[1717867691908,0.58663196,3684.0,3683.8,1.06158995]
[1717867693277,2.21547275,3684.0,3683.8,1.06158995]
[1717867693484,1.62884079,3684.0,3683.8,1.06158995]
[1717867694772,1.62884079,3684.0,3683.8,0.33758995]
[1717867695072,0.58662069,3683.9,3683.8,0.724]
[1717867695889,2.21546148,3683.9,3683.8,0.724]
[1717867696411,2.21546148,3683.9,3683.6,3.0322]
[1717867696591,2.21546586,3683.8,3683.6,3.0322]
[1717867696796,0.5686027,3684.3,3683.6,3.0322]
[1717867697124,1.62879098,3683.8,3683.6,3.0322]
[1717867698083,1.62879098,3683.8,3683.7,1.39285466]
[1717867698328,1.62879098,3683.9,3683.7,3.70815466]
[1717867698512,1.62879098,3684.1,3683.8,3.0847]
[1717867698712,2.71394,3684.7,3684.0,0.724]
[1717867698713,1.62879098,3684.2,3684.0,0.724]
[1717867698952,1.62879098,3684.2,3684.1,0.724]
[1717867699115,2.21535027,3684.2,3684.1,1.06162423]
[1717867700274,0.58655929,3684.2,3684.1,1.06162423]
[1717867702174,2.21549885,3684.2,3684.1,1.06162423]
[1717867705181,2.21549885,3684.2,3684.1,0.33762423]
[1717867705483,2.21549885,3684.2,3683.8,0.724]
[1717867705686,2.2712,3684.4,3684.1,0.33742133]
[1717867705906,0.58661291,3684.3,3683.8,0.724]
[1717867706188,1.62888576,3684.0,3683.8,0.724]